bitfinex-derivatives/quotes_SOLF0:USTF0_20251209
["timestamp","ask_amount","ask_price","bid_price","bid_amount"]
[1765259705428,9.18841431,132.21,132.2,0.05303882]
[1765259706437,11.23957746,132.21,132.2,0.00303882]
[1765259710831,14.67388683,132.21,132.2,0.00303882]
[1765259711537,21.71489217,132.21,132.2,0.00303882]
[1765259712627,14.67388683,132.21,132.2,0.00303882]
[1765259715635,23.23489217,132.21,132.2,0.00303882]
[1765259715836,25.47865168,132.21,132.2,0.00303882]
[1765259716135,89.79865168,132.21,132.2,0.00303882]
[1765259717428,80.51388683,132.21,132.2,0.00303882]
[1765259717628,89.90198936,132.21,132.2,0.00303882]
[1765259717836,88.38198936,132.21,132.2,0.00303882]
[1765259719043,78.99388683,132.21,132.2,0.00303882]
[1765259725549,88.38198936,132.21,132.2,0.00303882]
[1765259727950,88.3820362,132.21,132.2,0.00303882]
[1765259728852,78.99393367,132.21,132.2,0.00303882]
[1765259730155,86.04109276,132.21,132.2,0.00303882]
[1765259731856,88.09225591,132.21,132.2,0.00303882]
[1765259732062,81.04509682,132.21,132.2,0.00303882]
[1765259732251,88.09225591,132.21,132.2,0.00303882]
[1765259732553,81.04509682,132.21,132.2,0.00303882]
[1765259734147,75.61393367,132.21,132.2,3.19303882]
[1765259735245,79.00393367,132.21,132.2,0.00303882]
[1765259736258,14.68393367,132.21,132.2,0.00303882]
[1765259740856,11.29393367,132.21,132.2,0.00303882]
[1765259741049,5.80846115,132.21,132.2,0.00303882]
[1765259750757,7.8596243,132.21,132.2,0.00303882]
[1765259754664,5.80846115,132.21,132.2,0.00303882]
[1765259756358,5.7867305,132.21,132.2,0.00303882]
[1765259761670,3.17,132.22,132.2,3.21303882]
[1765259762462,3.17,132.22,131.92,60.69477883]
[1765259762463,106.0319,132.03,131.93,10.35855221]
[1765259762765,106.0319,132.03,131.78,318.6733]
[1765259762766,106.1376,131.9,131.78,106.2237]
[1765259762962,106.1833,131.84,131.75,4.16017036]
[1765259763167,106.1757,131.85,131.75,4.16017036]
[1765259763360,7.33247716,131.84,131.76,106.2402]
[1765259763563,0.05552539,131.81,131.79,0.05511995]
[1765259763760,0.04886066,131.81,131.79,0.05536982]
[1765259763965,0.04886066,131.81,131.79,106.27356982]
[1765259764167,0.04886066,131.81,131.79,107.79356982]
[1765259764365,7.0230424,131.87,131.81,109.4071]
[1765259764571,7.09825415,131.86,131.82,3.21]
[1765259764763,106.1189,131.92,131.82,3.21]
[1765259765159,106.17,131.86,131.75,110.41037036]
[1765259765358,424.5036,131.91,131.75,110.41037036]
[1765259765359,7.0230424,131.91,131.84,3.21]
[1765259765565,7.0230424,131.92,131.84,3.21]
[1765259765765,106.1071,131.94,131.84,3.21]
[1765259765766,113.1301424,131.94,131.84,3.21]
[1765259766063,106.1117,131.93,131.84,3.21]
[1765259766465,0.05296501,131.9,131.87,0.05205485]
[1765259767267,0.05296501,131.9,131.87,3.26205485]
[1765259767667,115.44099496,131.99,131.87,3.26205485]
[1765259767668,7.0230424,131.98,131.9,109.209]
[1765259767865,106.0495,132.01,131.91,3.08]
[1765259768059,254.8979221,132.03,131.92,3.08]
[1765259768266,247.8748797,132.03,131.92,3.08]
[1765259768464,254.8979221,132.03,131.92,3.08]
[1765259768664,0.05241399,131.99,131.96,0.05101169]
[1765259770865,106.11691399,131.99,131.96,0.05101169]
[1765259772175,106.0709,131.98,131.96,0.05101169]
[1765259772376,106.0709,131.98,131.89,3.08]
[1765259772868,7.0230424,131.98,131.9,106.1293]
[1765259773073,7.0230424,131.97,131.92,106.113]
[1765259773564,0.05228163,131.96,131.93,0.05348422]
[1765259776670,6.22911508,131.95,131.93,109.23768422]
[1765259776867,0.05228163,131.96,131.93,109.23768422]
[1765259777066,6.22911833,131.95,131.93,3.13348422]
[1765259777369,6.22911833,131.94,131.93,3.13348422]
[1765259777969,0.05228163,131.96,131.93,3.13348422]
[1765259778168,6.22054297,131.95,131.93,3.13348422]
[1765259778373,0.05228163,131.96,131.93,3.13348422]
[1765259778570,6.21855581,131.95,131.93,3.13348422]
[1765259778772,0.05228163,131.96,131.93,3.13348422]
[1765259778973,6.21855581,131.95,131.93,3.13348422]
[1765259779175,0.05228163,131.96,131.93,3.13348422]
[1765259779377,6.2040539,131.95,131.93,3.13348422]
[1765259779579,6.20370034,131.94,131.93,0.05348422]
[1765259780074,6.20370034,131.94,131.93,3.39348422]
[1765259780274,0.05228163,131.96,131.93,3.39348422]
[1765259780474,0.05228163,131.96,131.94,109.4369]
[1765259780678,0.05228163,131.96,131.95,3.34]
[1765259782179,6.20691621,131.96,131.93,116.31978422]
[1765259782379,6.15393938,131.95,131.94,64.42]
[1765259782779,0.05228163,131.96,131.94,64.42]
[1765259782980,0.05228163,131.96,131.95,3.34]
[1765259783176,0.05228163,131.96,131.93,0.05348422]
[1765259783373,13.12494653,131.95,131.93,0.05348422]
[1765259783579,6.10190413,131.94,131.93,0.05348422]
[1765259794185,13.12494653,131.94,131.93,0.05348422]
[1765259794382,6.10190413,131.94,131.93,0.05348422]
[1765259795184,13.12494653,131.94,131.93,0.05348422]
[1765259798177,6.10190413,131.94,131.93,0.05348422]
[1765259798478,12.96507389,131.94,131.93,0.05348422]
[1765259800187,6.10190413,131.94,131.93,0.05348422]
[1765259801085,15.47829909,131.94,131.93,0.05348422]
[1765259802183,13.00279198,131.94,131.93,0.05348422]
[1765259802786,6.10190413,131.94,131.93,0.05348422]
[1765259805483,0.05228163,131.96,131.93,175.45458422]
[1765259805796,6.90088785,132.02,131.96,3.34]
[1765259806197,6.90088785,132.01,131.99,3.34]
[1765259806693,6.95340822,132.01,131.99,3.38854739]
[1765259806989,0.05252037,132.01,131.99,3.38854739]
[1765259807193,6.95340822,132.01,131.99,3.38854739]
[1765259807394,0.05252037,132.01,131.99,3.38854739]
[1765259807600,0.05252037,132.01,132.0,10.1576]
[1765259807987,6.90088785,132.03,132.01,3.34]
[1765259808184,6.90088785,132.05,132.01,3.34]
[1765259808991,0.05076105,132.04,132.02,3.45584024]
[1765259809196,0.05076105,132.04,132.03,67.84]
[1765259811899,13.71358785,132.1,132.04,3.4]
[1765259812096,6.90088785,132.1,132.04,3.4]
[1765259812297,6.90088785,132.11,132.04,3.4]
[1765259812799,0.05146844,132.09,132.06,3.45104815]
[1765259815503,0.05146844,132.09,132.07,67.82]
[1765259817187,0.05146844,132.09,132.07,3.4]
[1765259817391,0.05146844,132.09,132.06,64.45104815]
[1765259817588,0.05146844,132.09,132.06,67.85104815]
[1765259818503,0.05146844,132.09,132.07,3.4]
[1765259819904,0.05146844,132.09,132.06,0.05104815]
[1765259820901,0.05146844,132.09,132.06,3.45104815]
[1765259825301,0.05146844,132.09,132.08,3.23]
[1765259825504,105.9188,132.17,132.08,3.23]
[1765259826009,6.81,132.15,132.09,3.23]
[1765259826400,105.9128,132.18,132.09,3.23]
[1765259826704,105.9128,132.18,132.12,3.28437781]
[1765259826705,0.04852984,132.15,132.12,3.28437781]
[1765259828205,0.04852984,132.15,132.12,0.05437781]
[1765259830108,6.8106,132.14,132.12,0.05437781]
[1765259832110,6.8106,132.14,132.06,3.23]
[1765259832111,105.9573,132.12,132.06,3.23]
[1765259832308,111.45548658,132.13,132.06,3.23]
[1765259833102,0.05445117,132.11,132.08,0.05005476]
[1765259834604,0.05445117,132.11,132.08,3.28005476]
[1765259838611,0.05445117,132.11,132.08,0.05005476]
[1765259839703,0.05445117,132.11,132.09,3.15]
[1765259842914,105.9816,132.09,132.0,3.15]
[1765259843114,2.05318736,132.05,132.0,3.15]
[1765259843810,0.05245809,132.04,132.02,3.15]
[1765259851118,5.67056589,132.03,132.02,3.15]
[1765259853620,5.67056589,132.03,132.01,0.05419158]
[1765259853821,5.67056589,132.02,132.01,0.05419158]
[1765259854223,0.05245809,132.04,132.01,3.20419158]
[1765259854424,5.67166408,132.03,132.01,3.20419158]
[1765259854616,0.05245809,132.04,132.01,3.20419158]
[1765259854811,5.67166657,132.03,132.01,3.20419158]
[1765259855015,0.05245809,132.04,132.01,3.20419158]
[1765259856310,0.05245809,132.04,132.01,0.05419158]
[1765259856515,5.66994802,132.03,132.01,0.05419158]
[1765259856715,0.05245809,132.04,132.01,0.05419158]
[1765259856913,5.66993869,132.03,132.01,0.05419158]
[1765259857112,0.05245809,132.04,132.01,0.05419158]
[1765259857316,5.66779617,132.03,132.01,0.05419158]
[1765259857520,5.66779617,132.02,132.01,0.05419158]
[1765259860126,6.8163,132.03,132.01,0.05419158]
[1765259860919,0.05245809,132.04,132.01,3.20419158]
[1765259872441,0.05245809,132.04,132.01,10.02089158]
[1765259872643,0.05245809,132.04,132.02,3.09]
[1765259878941,0.05245809,132.04,132.01,3.14419158]
[1765259885145,5.69506148,132.03,132.01,3.14419158]
[1765259885442,0.05245809,132.04,132.01,3.14419158]
[1765259885645,5.694934,132.03,132.01,3.14419158]
[1765259885849,0.05245809,132.04,132.01,3.14419158]
[1765259886157,5.69492868,132.03,132.01,3.14419158]
[1765259886354,0.05245809,132.04,132.01,3.14419158]
[1765259886556,5.69966819,132.03,132.01,3.14419158]
[1765259886757,0.05245809,132.04,132.01,3.14419158]
[1765259886953,5.69966819,132.03,132.01,3.14419158]
[1765259887152,5.70681361,132.02,132.01,3.14419158]
[1765259906371,24.52274027,132.02,131.98,3.3]
[1765259906570,5.70681361,132.01,131.98,3.3]
[1765259906764,5.70681361,132.0,131.98,3.3]
[1765259906965,5.70681361,131.99,131.98,3.3]
[1765259909374,0.05206032,132.0,131.98,3.3]
[1765259910074,0.05206032,132.0,131.99,3.3]
[1765259911469,6.90088785,132.06,132.01,3.3]
[1765259911675,11.22625693,132.05,132.01,3.3]
[1765259911975,5.69380899,132.04,132.01,3.3]
[1765259912180,13.71518785,132.07,132.01,3.3]
[1765259912382,11.22486177,132.06,132.01,3.3]
[1765259912575,11.28025843,132.05,132.02,3.35785019]
[1765259912773,5.69308674,132.04,132.02,3.35785019]
[1765259912977,0.05539666,132.05,132.02,3.35785019]
[1765259913178,5.69308238,132.04,132.02,3.35785019]
[1765259913481,0.05539666,132.05,132.02,3.35785019]
[1765259913682,5.6927133,132.04,132.02,3.35785019]
[1765259913980,0.05539666,132.05,132.02,3.35785019]
[1765259914182,5.69273587,132.04,132.02,3.35785019]
[1765259914376,0.05539666,132.05,132.02,3.35785019]
[1765259914675,5.69252678,132.04,132.02,3.35785019]
[1765259914876,0.05539666,132.05,132.02,3.35785019]
[1765259915076,5.69252678,132.04,132.02,3.35785019]
[1765259915383,0.05539666,132.05,132.02,3.35785019]
[1765259915583,5.69163696,132.04,132.02,3.35785019]
[1765259915783,0.05539666,132.05,132.02,3.35785019]
[1765259916083,5.69163696,132.04,132.02,3.35785019]
[1765259916282,0.05539666,132.05,132.02,3.35785019]
[1765259916483,5.69099081,132.04,132.02,3.35785019]
[1765259916684,0.05539666,132.05,132.02,3.35785019]
[1765259916884,5.69099081,132.04,132.02,3.35785019]
[1765259917082,0.05539666,132.05,132.02,3.35785019]
[1765259917278,5.69049839,132.04,132.02,3.35785019]
[1765259917476,0.05539666,132.05,132.02,3.35785019]
[1765259917677,5.69035615,132.04,132.02,3.35785019]
[1765259917878,0.05539666,132.05,132.02,3.35785019]
[1765259918072,5.69035615,132.04,132.02,3.35785019]
[1765259918381,0.05539666,132.05,132.02,3.35785019]
[1765259918582,5.69014288,132.04,132.02,3.35785019]
[1765259918781,0.05539666,132.05,132.02,3.35785019]
[1765259918981,5.69014288,132.04,132.02,3.35785019]
[1765259919276,0.05539666,132.05,132.02,3.35785019]
[1765259919474,5.69021323,132.04,132.02,3.35785019]
[1765259919675,5.68982572,132.03,132.02,0.05785019]
[1765259921972,11.25173902,132.03,132.02,0.05785019]
[1765259923687,5.68982572,132.03,132.02,0.05785019]
[1765259924187,11.25201303,132.03,132.02,0.05785019]
[1765259926584,11.25201303,132.03,131.99,10.1179]
[1765259926790,6.90088785,132.04,131.99,10.1179]
[1765259926791,11.25201303,132.02,131.99,10.1179]
[1765259926990,5.68982572,132.01,131.99,10.1179]
[1765259927289,6.90088785,132.04,131.99,10.1179]
[1765259927486,11.25357799,132.03,131.99,10.1179]
[1765259927684,11.30270889,132.02,132.0,0.05655914]
[1765259927882,5.6907633,132.01,132.0,0.05655914]
[1765259928082,5.6907633,132.01,132.0,3.35655914]
[1765259928884,5.6907633,132.01,132.0,0.05655914]
[1765259929083,11.25353847,132.01,132.0,0.05655914]
[1765259932602,5.6907633,132.01,132.0,0.05655914]
[1765259933288,11.25484131,132.01,132.0,0.05655914]
[1765259934094,11.25737604,132.01,132.0,0.05655914]
[1765259935493,5.6907633,132.01,132.0,0.05655914]
[1765259937901,5.6907633,132.01,132.0,3.33655914]
[1765259938301,0.0491309,132.02,132.0,3.33655914]
[1765259939405,0.0491309,132.02,132.01,3.28]
[1765259951210,2.05583596,132.07,132.03,3.25]
[1765259951410,5.68786769,132.06,132.03,3.25]
[1765259951615,5.68786769,132.05,132.03,3.25]
[1765259951915,2.05583596,132.07,132.03,3.25]
[1765259952115,5.68787738,132.06,132.03,3.25]
[1765259952319,5.68787738,132.05,132.03,3.30375328]
[1765259952516,0.04858295,132.06,132.03,3.30375328]
[1765259956814,5.66905879,132.05,132.03,3.30375328]
[1765259957018,0.04858295,132.06,132.03,3.30375328]
[1765259957223,5.66904262,132.05,132.03,3.30375328]
[1765259957524,0.04858295,132.06,132.03,3.30375328]
[1765259957717,5.66884109,132.05,132.03,3.30375328]
[1765259957917,0.04858295,132.06,132.03,3.30375328]
[1765259958216,5.66884109,132.05,132.03,3.30375328]
[1765259958410,0.04858295,132.06,132.03,3.30375328]
[1765259958608,5.66862841,132.05,132.03,3.30375328]
[1765259958826,0.04858295,132.06,132.03,3.30375328]
[1765259959014,5.66862716,132.05,132.03,3.30375328]
[1765259959210,0.04858295,132.06,132.03,3.30375328]
[1765259959420,5.66851579,132.05,132.03,3.30375328]
[1765259959616,7.72652089,132.04,132.03,0.05375328]
[1765259959816,7.72652089,132.04,131.98,3.1]
[1765259960027,5.67068493,132.03,131.98,3.1]
[1765259960230,2.05583596,132.04,131.98,3.1]
[1765259960524,5.67099053,132.03,131.99,3.1]
[1765259960720,0.05144555,132.02,132.01,3.1]
[1765259960926,0.05518938,132.03,132.01,3.1]
[1765259963520,0.05518938,132.03,132.02,3.1]
[1765259965421,0.05518938,132.03,132.02,5.15583596]
[1765259965818,0.05518938,132.03,132.0,0.04976032]
[1765259966122,0.05518938,132.03,131.93,106.1035]
[1765259966123,13.11467496,132.02,131.93,106.1035]
[1765259966328,2.05583596,132.0,131.93,108.15933596]
[1765259967029,0.04793291,131.98,131.95,6.86877366]
[1765259967825,0.04793291,131.98,131.96,9.9194]
[1765259968028,0.04793291,131.98,131.97,3.1]
[1765259968224,6.90088785,132.04,131.97,3.1]
[1765259968538,13.50409424,132.03,131.97,3.1]
[1765259968831,11.44825828,132.02,131.99,3.1]
[1765259969129,2.05583596,132.03,131.99,3.1]
[1765259969431,5.71888853,132.02,132.0,3.15678248]
[1765259969628,0.05071895,132.02,132.0,3.15678248]
[1765259969830,0.05071895,132.02,132.0,0.05678248]
[1765259972635,0.05071895,132.02,132.01,3.1]
[1765259973938,2.05583596,132.06,132.01,3.1]
[1765259974235,11.25808704,132.05,132.01,3.1]
[1765259974432,11.25808704,132.04,132.02,3.1]
[1765259974636,5.66912963,132.03,132.02,3.1]
[1765259975547,5.66912963,132.03,132.01,9.97305421]
[1765259975746,0.05411513,132.04,132.01,9.97305421]
[1765259975952,5.67013422,132.03,132.01,9.97305421]
[1765259976141,0.05411513,132.04,132.01,9.97305421]
[1765259976346,5.67068365,132.03,132.01,9.97305421]
[1765259976555,0.05411513,132.04,132.01,9.97305421]
[1765259976850,5.67068365,132.03,132.01,9.97305421]
[1765259977150,0.05411513,132.04,132.03,3.1]
[1765259979943,0.05411513,132.04,132.03,67.5]
[1765259985053,238.69294792,132.09,132.04,3.1]
[1765259985252,5.67498101,132.08,132.04,3.1]
[1765259985550,5.67498101,132.07,132.04,3.1]
[1765259985751,238.69294792,132.09,132.04,3.1]
[1765259985953,5.72444821,132.08,132.05,3.15386449]
[1765259986146,5.67498374,132.07,132.06,3.1]
[1765259986344,5.67498374,132.07,132.06,67.5]
[1765259987050,0.04946447,132.08,132.07,3.1]
[1765259988459,5.7157472,132.08,132.07,64.4]
[1765259988645,5.7157472,132.08,132.05,3.21386449]
[1765259988852,5.66596536,132.07,132.05,67.61386449]
[1765259989156,0.04946447,132.08,132.05,67.61386449]
[1765259989759,5.66542564,132.07,132.05,67.61386449]
[1765259989956,0.04946447,132.08,132.05,67.61386449]
[1765259990164,5.66546858,132.07,132.05,67.61386449]
[1765259990360,0.04946447,132.08,132.05,67.61386449]
[1765259990558,5.66509101,132.07,132.05,67.61386449]
[1765259990758,0.04946447,132.08,132.05,67.61386449]
[1765259990960,5.66889036,132.07,132.05,67.61386449]
[1765259991161,0.04946447,132.08,132.05,67.61386449]
[1765259991362,5.66853207,132.07,132.05,67.61386449]
[1765259991558,0.04946447,132.08,132.05,67.61386449]
[1765259991861,5.66853207,132.07,132.05,67.61386449]
[1765259992063,0.04946447,132.08,132.05,67.61386449]
[1765259992264,5.66818669,132.07,132.05,67.61386449]
[1765259992460,0.04946447,132.08,132.05,67.61386449]
[1765259992658,5.66746706,132.07,132.05,67.61386449]
[1765259992860,0.04946447,132.08,132.05,67.61386449]
[1765259993061,5.66685495,132.07,132.05,67.61386449]
[1765259993260,0.04946447,132.08,132.05,67.61386449]
[1765259993459,5.66616429,132.07,132.05,67.61386449]
[1765259993660,0.04946447,132.08,132.05,67.61386449]
[1765259993860,5.66604732,132.07,132.06,3.16]
[1765259995069,0.04946447,132.08,132.06,3.16]
[1765259995464,5.66539465,132.07,132.06,3.16]
[1765259997562,0.04946447,132.08,132.06,3.16]
[1765259999974,0.04946447,132.08,132.06,9.9743]
[1765260000271,7.01388973,132.12,132.07,3.16]
[1765260000466,5.66439958,132.11,132.1,3.16]
[1765260000772,9.06972569,132.15,132.1,3.16]
[1765260000973,10.97419698,132.14,132.1,3.16]
[1765260001171,5.66584653,132.13,132.1,3.16]
[1765260001474,5.66584653,132.13,132.1,3.20842224]
[1765260001475,0.05289083,132.13,132.1,3.20842224]
[1765260003875,5.6519978,132.12,132.1,0.04842224]
[1765260004072,5.65225305,132.11,132.1,0.04842224]
[1765260004276,5.65225305,132.11,132.05,64.38]
[1765260004476,5.65225305,132.1,132.07,3.16]
[1765260004673,3.20828447,132.12,132.07,3.16]
[1765260004973,5.65208675,132.11,132.07,3.16]
[1765260005176,3.20828447,132.12,132.07,3.16]
[1765260005375,5.70876225,132.11,132.08,0.05347625]
[1765260005674,0.05549962,132.11,132.08,0.05347625]
[1765260005876,0.05549962,132.11,132.09,64.38]
[1765260006077,0.05549962,132.11,132.1,3.16]
[1765260008874,0.05549962,132.11,132.09,74.3527]
[1765260009075,0.05549962,132.11,132.08,3.21347625]
[1765260009668,0.05549962,132.11,132.08,0.05347625]
[1765260009869,0.05549962,132.11,132.08,3.29347625]
[1765260010573,5.65048019,132.14,132.1,3.24]
[1765260010773,5.25951162,132.17,132.11,3.24]
[1765260010972,5.65084629,132.16,132.11,3.24]
[1765260011176,5.65084629,132.15,132.11,3.24]
[1765260011377,5.25951162,132.17,132.11,3.24]
[1765260011582,0.05117679,132.15,132.13,0.05490639]
[1765260013679,0.05117679,132.15,132.13,3.29490639]
[1765260014682,12.27340135,132.22,132.15,3.24]
[1765260014884,5.63965204,132.21,132.15,3.24]
[1765260015083,5.63965204,132.2,132.15,3.24]
[1765260015283,5.25951162,132.22,132.15,3.24]
[1765260015485,5.6367404,132.21,132.17,3.24]
[1765260015687,5.69354424,132.2,132.18,3.29726388]
[1765260015887,0.05680384,132.2,132.18,3.29726388]
[1765260018885,0.05680384,132.2,132.18,0.05726388]
[1765260020787,0.05680384,132.2,132.18,3.14726388]
[1765260027594,0.05680384,132.2,132.18,0.05726388]
[1765260032700,5.61628781,132.19,132.18,0.05726388]
[1765260049310,10.91274368,132.19,132.18,0.05726388]
[1765260053520,10.91274368,132.19,132.18,3.23726388]
[1765260053719,5.61628781,132.19,132.18,3.23726388]
[1765260055413,10.92441218,132.19,132.18,3.23726388]
[1765260057524,10.92441218,132.19,132.18,0.05726388]
[1765260057723,17.93830191,132.19,132.18,0.05726388]
[1765260058821,17.94787215,132.19,132.18,0.05726388]
[1765260062322,82.28787215,132.19,132.18,0.05726388]
[1765260062726,84.3396265,132.19,132.18,0.05726388]
[1765260063927,77.32573677,132.19,132.18,0.05726388]
[1765260064223,6.8086,132.18,132.14,3.18]
[1765260064431,2.05175435,132.16,132.12,3.18]
[1765260064628,5.61628781,132.15,132.12,3.18]
[1765260064819,5.61628781,132.14,132.12,3.18]
[1765260065019,66.39175435,132.16,132.12,3.18]
[1765260065329,11.51356869,132.15,132.13,3.23474531]
[1765260065519,11.46468771,132.14,132.13,3.23474531]
[1765260067332,11.46468771,132.14,132.13,0.05474531]
[1765260069435,11.46468771,132.14,132.13,3.38474531]
[1765260070240,11.46468771,132.14,132.13,4.90474531]
[1765260070838,0.04888098,132.15,132.14,3.33]
[1765260071032,11.42742464,132.15,132.14,3.33]
[1765260073135,5.73898445,132.15,132.14,3.33]
[1765260074042,0.04888098,132.15,132.14,3.33]
[1765260077944,9.08369924,132.19,132.16,3.33]
[1765260078139,11.09866115,132.18,132.16,3.33]
[1765260078444,11.09866115,132.17,132.16,3.33]
[1765260079140,11.09866115,132.17,132.15,0.05277251]
[1765260079344,11.09866115,132.16,132.15,0.05277251]
[1765260080143,13.1504155,132.16,132.15,0.05277251]
[1765260085051,13.15010101,132.16,132.15,0.05277251]
[1765260087352,84.5220459,132.16,132.1,11.3]
[1765260087555,2.05175435,132.14,132.1,3.3]
[1765260087757,5.66965345,132.13,132.1,3.3]
[1765260087957,5.66965345,132.12,132.1,3.3]
[1765260088152,2.05175435,132.14,132.1,3.3]
[1765260088351,5.71629096,132.13,132.11,3.35525796]
[1765260088551,5.66649661,132.12,132.11,3.35525796]
[1765260091652,5.66649661,132.12,132.11,0.05525796]
[1765260091855,13.14020143,132.12,132.11,0.05525796]
[1765260092252,13.13994629,132.12,132.11,0.05525796]
[1765260093057,13.13994629,132.12,132.04,2.05175435]
[1765260093260,2.05175435,132.1,132.05,3.3]
[1765260093457,5.66649661,132.09,132.05,3.3]
[1765260093649,2.05175435,132.1,132.05,3.3]
[1765260093847,5.65493825,132.09,132.05,3.3]
[1765260094051,0.04892587,132.08,132.06,3.3579863]
[1765260097057,2.10068022,132.08,132.06,0.0579863]
[1765260098158,0.04892587,132.08,132.06,3.3579863]
[1765260098960,0.04892587,132.08,132.06,0.0579863]
[1765260099165,0.04892587,132.08,132.06,3.3579863]
[1765260107968,0.04892587,132.08,132.06,0.0579863]
[1765260108671,0.04892587,132.08,132.06,3.3779863]
[1765260111273,217.18761357,132.1,132.08,3.32]
[1765260112164,217.2427482,132.1,132.08,3.32]
[1765260117871,0.05513463,132.1,132.09,5.37175435]
[1765260118377,0.05513463,132.1,132.09,3.32]
[1765260119673,7.03194489,132.18,132.11,3.32]
[1765260119875,10.9723537,132.17,132.13,3.32]
[1765260120074,69.71507884,132.18,132.13,3.32]
[1765260120376,5.63856186,132.17,132.13,3.32]
[1765260120577,0.04822851,132.16,132.14,0.05765668]
[1765260120879,0.04822851,132.16,132.14,3.37765668]
[1765260121183,0.04822851,132.16,132.14,0.05765668]
[1765260121378,2.09998286,132.16,132.14,0.05765668]
[1765260121578,2.09998286,132.16,132.09,3.32]
[1765260121878,2.05175435,132.14,132.09,3.32]
[1765260122480,0.05259565,132.13,132.1,3.22525804]
[1765260123284,2.05175435,132.12,132.1,0.05525804]
[1765260123774,5.34120303,132.17,132.12,3.17]
[1765260123968,2.05175435,132.17,132.12,3.17]
[1765260124781,5.64524199,132.16,132.12,3.17]
[1765260124971,0.05487315,132.16,132.13,3.22355264]
[1765260125871,5.64512963,132.15,132.13,0.05355264]
[1765260126072,8.60426044,132.16,132.13,0.05355264]
[1765260126279,5.64572086,132.15,132.13,0.05355264]
[1765260126481,5.64572086,132.14,132.13,0.05355264]
[1765260126684,8.60426044,132.16,132.13,0.05355264]
[1765260126685,0.05487315,132.16,132.13,3.22355264]
[1765260126875,0.05487315,132.16,132.13,0.05355264]
[1765260127071,5.64632569,132.15,132.13,0.05355264]
[1765260127270,0.05487315,132.16,132.13,0.05355264]
[1765260127577,5.64845754,132.15,132.13,0.05355264]
[1765260127879,0.05487315,132.16,132.13,0.05355264]
[1765260128069,10.991892,132.15,132.13,0.05355264]
[1765260128268,5.64961766,132.14,132.13,0.05355264]
[1765260129488,5.64961766,132.14,132.09,3.17]
[1765260129674,5.64961766,132.13,132.09,3.17]
[1765260129973,3.20711061,132.15,132.09,3.17]
[1765260130280,5.65209114,132.14,132.09,3.17]
[1765260130477,5.70060214,132.13,132.1,3.2268166]
[1765260130675,0.048511,132.13,132.1,3.2268166]
[1765260145992,105.9106,132.18,132.1,3.2268166]
[1765260145993,13.84064489,132.18,132.1,3.2268166]
[1765260146293,5.62572631,132.17,132.11,3.13]
[1765260146495,5.62572631,132.16,132.11,3.13]
[1765260146687,6.8087,132.18,132.11,3.13]
[1765260146886,0.05059376,132.16,132.14,3.13]
[1765260158307,7.03194489,132.22,132.17,3.13]
[1765260158604,10.99301388,132.21,132.17,3.13]
[1765260158805,5.61374647,132.2,132.17,3.13]
[1765260159004,6.8063,132.22,132.17,3.13]
[1765260159203,5.64540367,132.21,132.18,3.1840162]
[1765260159503,5.59552698,132.2,132.18,3.1840162]
[1765260159700,0.04987669,132.21,132.18,3.1840162]
[1765260160005,5.5944305,132.2,132.18,3.1840162]
[1765260160207,0.04987669,132.21,132.18,3.1840162]
[1765260160407,5.59317786,132.2,132.18,3.1840162]
[1765260160605,0.04987669,132.21,132.18,3.1840162]
[1765260160804,5.59563677,132.2,132.18,3.1840162]
[1765260161106,0.04987669,132.21,132.18,3.1840162]
[1765260161306,5.5941493,132.2,132.18,3.1840162]
[1765260161507,0.04987669,132.21,132.18,3.1840162]
[1765260161695,5.5941493,132.2,132.18,3.1840162]
[1765260161898,0.04987669,132.21,132.18,3.1840162]
[1765260162194,5.59415123,132.2,132.18,3.1840162]
[1765260162397,0.04987669,132.21,132.18,3.1840162]
[1765260162593,5.59346005,132.2,132.18,3.1840162]
[1765260162797,0.04987669,132.21,132.18,3.1840162]
[1765260163101,5.59492249,132.2,132.18,3.1840162]
[1765260163408,0.04987669,132.21,132.18,3.1840162]
[1765260163704,5.58146356,132.2,132.18,3.1840162]
[1765260164007,0.04987669,132.21,132.18,3.1840162]
[1765260167204,64.34,132.24,132.19,3.13]
[1765260167396,6.805,132.25,132.19,3.13]
[1765260167598,5.57905538,132.24,132.19,3.13]
[1765260167801,6.805,132.25,132.19,3.13]
[1765260168005,5.57905538,132.24,132.19,3.13]
[1765260168203,0.0566002,132.23,132.21,3.13]
[1765260168404,0.0566002,132.23,132.2,3.15505082]
[1765260180732,3.20711061,132.22,132.2,0.05505082]
[1765260180936,5.56612369,132.21,132.17,3.1]